{"text_format":"1","workbook":"xlsx","n_sheets":15,"sheets":["Inicio","Rol","Sueldos","HDT IESS","utilitarios","HDT MANUAL","XIV","XIII","UTILIDADES","Cálculos_Utilidades","web","ad1","ad2","Hoja1","Hoja2"],"not_rendered":{"charts":0,"images":12,"macros":1,"external_links":0,"defined_names":11,"comments":4,"pivot_tables":1},"unopened":[],"bounds":{"document_bytes":16777216,"sheet_cells":100000,"rows_first":2000,"rows_last":500,"rows_between":2000,"halvings":0,"cell_chars":16384,"cell_head_chars":4096},"cells_cut":0,"cells_raw":0,"read":"whole","date_system":"1900"}

{"sheet":"Inicio","index":0,"n_rows":0,"n_cols":0,"rows_kept":0,"cut":false,"hidden":true,"merged":[]}

{"sheet":"Rol","index":1,"n_rows":5,"n_cols":15,"rows_kept":5,"cut":false,"hidden":false,"merged":[[0,1,0,14],[4,5,4,9]]}
[null,"ROL EMPLEADOS"]
[null,"N°","Nombre","Cédula","Actividad","Actividad Sectorial","Relación de Trabajo","Forma Pago","% Aportación","% Cesantia Aportacion","Sueldo","Sueldo Extra","Días mod","Valor días Mod","Total Afiliado"]
[null,1,"CSSMPSSNSS GJJSSNTT JTTSRR SSNTTTNZZTT","ITIG821EIE","ASISTENTE / AYUDANTE / AUXILIAR  DE BODEGA","1910000000037","06-CODIGO DEL TRABAJO - CT ","P",20.6,0,475.17,0,0,0,475.17]
[null,2,"CHTTNG CHSSN FRRLZZX JTTSRR","ITI429E51E","ASISTENTE / AYUDANTE / AUXILIAR  DE BODEGA","1910000000037","06-CODIGO DEL TRABAJO - CT ","P",20.6,0,475.17,0,0,0,475.17]
[null,null,null,null,null,"Total Rol",null,null,null,null,950.34,0,"",0,950.34]

{"sheet":"Sueldos","index":2,"n_rows":50,"n_cols":15,"rows_kept":50,"cut":false,"hidden":false,"merged":[[0,1,0,14]]}
[null,"Consolidado de Planillas"]
[null,"Periodo","Cédula","Nombre","Rel. Trabajo","Sueldo","Días","Patronal","Individual","Aporte Adic","Cesantia","% CCC","Valor CCC","Total Aporte","NA"]
[null,"2023-11","ITIG821EIE","CSSMPSSNSS GJJSSNTT JTTSRR SSNTTTNZZTT","06-CTTDZZGTT DRRL TRSSBSSJTT - CT ",454.95,30,50.73,42.99,0,0,1,4.55,93.72]
[null,"2023-10","ITIG821EIE","CSSMPSSNSS GJJSSNTT JTTSRR SSNTTTNZZTT","06-CTTDZZGTT DRRL TRSSBSSJTT - CT ",454.95,30,50.73,42.99,0,0,1,4.55,93.72]
[null,"2023-9","ITIG821EIE","CSSMPSSNSS GJJSSNTT JTTSRR SSNTTTNZZTT","06-CTTDZZGTT DRRL TRSSBSSJTT - CT ",454.95,30,50.73,42.99,0,0,1,4.55,93.72]
[null,"2023-8","ITIG821EIE","CSSMPSSNSS GJJSSNTT JTTSRR SSNTTTNZZTT","06-CTTDZZGTT DRRL TRSSBSSJTT - CT ",454.95,30,50.73,42.99,0,0,1,4.55,93.72]
[null,"2023-7","ITIG821EIE","CSSMPSSNSS GJJSSNTT JTTSRR SSNTTTNZZTT","06-CTTDZZGTT DRRL TRSSBSSJTT - CT ",454.95,30,50.73,42.99,0,0,1,4.55,93.72]
[null,"2023-6","ITIG821EIE","CSSMPSSNSS GJJSSNTT JTTSRR SSNTTTNZZTT","06-CTTDZZGTT DRRL TRSSBSSJTT - CT ",454.95,30,50.73,42.99,0,0,1,4.55,93.72]
[null,"2023-5","ITIG821EIE","CSSMPSSNSS GJJSSNTT JTTSRR SSNTTTNZZTT","06-CTTDZZGTT DRRL TRSSBSSJTT - CT ",454.95,30,50.73,42.99,0,0,1,4.55,93.72]
[null,"2023-4","ITIG821EIE","CSSMPSSNSS GJJSSNTT JTTSRR SSNTTTNZZTT","06-CTTDZZGTT DRRL TRSSBSSJTT - CT ",454.95,30,50.73,42.99,0,0,1,4.55,93.72]
[null,"2023-3","ITIG821EIE","CSSMPSSNSS GJJSSNTT JTTSRR SSNTTTNZZTT","06-CTTDZZGTT DRRL TRSSBSSJTT - CT ",454.95,30,50.73,42.99,0,0,1,4.55,93.72]
[null,"2023-2","ITIG821EIE","CSSMPSSNSS GJJSSNTT JTTSRR SSNTTTNZZTT","06-CTTDZZGTT DRRL TRSSBSSJTT - CT ",454.95,30,50.73,42.99,0,0,1,4.55,93.72]
[null,"2023-1","ITIG821EIE","CSSMPSSNSS GJJSSNTT JTTSRR SSNTTTNZZTT","06-CTTDZZGTT DRRL TRSSBSSJTT - CT ",454.95,30,50.73,42.99,0,0,1,4.55,93.72]
[null,"2022-12","ITIG821EIE","CSSMPSSNSS GJJSSNTT JTTSRR SSNTTTNZZTT","06-CTTDZZGTT DRRL TRSSBSSJTT - CT ",429.68,30,47.91,40.6,0,0,1,4.3,88.51]
[null,"2023-11","ITI429E51E","CHTTNG CHSSN FRRLZZX JTTSRR","06-CTTDZZGTT DRRL TRSSBSSJTT - CT ",458.72,30,51.15,43.35,0,0,1,4.59,94.5]
[null,"2023-10","ITI429E51E","CHTTNG CHSSN FRRLZZX JTTSRR","06-CTTDZZGTT DRRL TRSSBSSJTT - CT ",458.72,30,51.15,43.35,0,0,1,4.59,94.5]
[null,"2023-9","ITI429E51E","CHTTNG CHSSN FRRLZZX JTTSRR","06-CTTDZZGTT DRRL TRSSBSSJTT - CT ",458.72,30,51.15,43.35,0,0,1,4.59,94.5]
[null,"2023-8","ITI429E51E","CHTTNG CHSSN FRRLZZX JTTSRR","06-CTTDZZGTT DRRL TRSSBSSJTT - CT ",458.72,30,51.15,43.35,0,0,1,4.59,94.5]
[null,"2023-7","ITI429E51E","CHTTNG CHSSN FRRLZZX JTTSRR","06-CTTDZZGTT DRRL TRSSBSSJTT - CT ",458.72,30,51.15,43.35,0,0,1,4.59,94.5]
[null,"2023-6","ITI429E51E","CHTTNG CHSSN FRRLZZX JTTSRR","06-CTTDZZGTT DRRL TRSSBSSJTT - CT ",458.72,30,51.15,43.35,0,0,1,4.59,94.5]
[null,"2023-5","ITI429E51E","CHTTNG CHSSN FRRLZZX JTTSRR","06-CTTDZZGTT DRRL TRSSBSSJTT - CT ",458.72,30,51.15,43.35,0,0,1,4.59,94.5]
[null,"2023-4","ITI429E51E","CHTTNG CHSSN FRRLZZX JTTSRR","06-CTTDZZGTT DRRL TRSSBSSJTT - CT ",458.72,30,51.15,43.35,0,0,1,4.59,94.5]
[null,"2023-3","ITI429E51E","CHTTNG CHSSN FRRLZZX JTTSRR","06-CTTDZZGTT DRRL TRSSBSSJTT - CT ",458.72,30,51.15,43.35,0,0,1,4.59,94.5]
[null,"2023-2","ITI429E51E","CHTTNG CHSSN FRRLZZX JTTSRR","06-CTTDZZGTT DRRL TRSSBSSJTT - CT ",458.72,30,51.15,43.35,0,0,1,4.59,94.5]
[null,"2023-1","ITI429E51E","CHTTNG CHSSN FRRLZZX JTTSRR","06-CTTDZZGTT DRRL TRSSBSSJTT - CT ",458.72,30,51.15,43.35,0,0,1,4.59,94.5]
[null,"2022-12","ITI429E51E","CHTTNG CHSSN FRRLZZX JTTSRR","06-CTTDZZGTT DRRL TRSSBSSJTT - CT ",433.24,30,48.31,40.94,0,0,1,4.33,89.25]
[null,"2023-11","IT5IG9G924","DRR LSS CRJJZ PSSLSSCZZTTS LRRTTNRRL SSLRRXSSNDRRR","06-CTTDZZGTT DRRL TRSSBSSJTT - CT ",454.95,30,50.73,42.99,0,0,1,4.55,93.72]
[null,"2023-10","IT5IG9G924","DRR LSS CRJJZ PSSLSSCZZTTS LRRTTNRRL SSLRRXSSNDRRR","06-CTTDZZGTT DRRL TRSSBSSJTT - CT ",439.79,29,49.04,41.56,0,0,1,4.4000000000000004,90.6]
[null,"2023-11","ITIE9E14EG","DZZSSZ WJJ JRRNNY SSNTTTNZZRRTSS","68-DJJRRNTT DRR RRMPR- SSDMZZN-PRTTFRRSZZTTNSSL RRN LZZBRRR RRJRRRC",450,30,0,79.2,0,0,0,0,79.2]
[null,"2023-10","ITIE9E14EG","DZZSSZ WJJ JRRNNY SSNTTTNZZRRTSS","68-DJJRRNTT DRR RRMPR- SSDMZZN-PRTTFRRSZZTTNSSL RRN LZZBRRR RRJRRRC",450,30,0,79.2,0,0,0,0,79.2]
[null,"2023-9","ITIE9E14EG","DZZSSZ WJJ JRRNNY SSNTTTNZZRRTSS","68-DJJRRNTT DRR RRMPR- SSDMZZN-PRTTFRRSZZTTNSSL RRN LZZBRRR RRJRRRC",450,30,0,79.2,0,0,0,0,79.2]
[null,"2023-8","ITIE9E14EG","DZZSSZ WJJ JRRNNY SSNTTTNZZRRTSS","68-DJJRRNTT DRR RRMPR- SSDMZZN-PRTTFRRSZZTTNSSL RRN LZZBRRR RRJRRRC",450,30,0,79.2,0,0,0,0,79.2]
[null,"2023-7","ITIE9E14EG","DZZSSZ WJJ JRRNNY SSNTTTNZZRRTSS","68-DJJRRNTT DRR RRMPR- SSDMZZN-PRTTFRRSZZTTNSSL RRN LZZBRRR RRJRRRC",450,30,0,79.2,0,0,0,0,79.2]
[null,"2023-6","ITIE9E14EG","DZZSSZ WJJ JRRNNY SSNTTTNZZRRTSS","68-DJJRRNTT DRR RRMPR- SSDMZZN-PRTTFRRSZZTTNSSL RRN LZZBRRR RRJRRRC",450,30,0,79.2,0,0,0,0,79.2]
[null,"2023-5","ITIE9E14EG","DZZSSZ WJJ JRRNNY SSNTTTNZZRRTSS","68-DJJRRNTT DRR RRMPR- SSDMZZN-PRTTFRRSZZTTNSSL RRN LZZBRRR RRJRRRC",450,30,0,79.2,0,0,0,0,79.2]
[null,"2023-4","ITIE9E14EG","DZZSSZ WJJ JRRNNY SSNTTTNZZRRTSS","68-DJJRRNTT DRR RRMPR- SSDMZZN-PRTTFRRSZZTTNSSL RRN LZZBRRR RRJRRRC",450,30,0,79.2,0,0,0,0,79.2]
[null,"2023-3","ITIE9E14EG","DZZSSZ WJJ JRRNNY SSNTTTNZZRRTSS","68-DJJRRNTT DRR RRMPR- SSDMZZN-PRTTFRRSZZTTNSSL RRN LZZBRRR RRJRRRC",450,30,0,79.2,0,0,0,0,79.2]
[null,"2023-2","ITIE9E14EG","DZZSSZ WJJ JRRNNY SSNTTTNZZRRTSS","68-DJJRRNTT DRR RRMPR- SSDMZZN-PRTTFRRSZZTTNSSL RRN LZZBRRR RRJRRRC",450,30,0,79.2,0,0,0,0,79.2]
[null,"2023-1","ITIE9E14EG","DZZSSZ WJJ JRRNNY SSNTTTNZZRRTSS","68-DJJRRNTT DRR RRMPR- SSDMZZN-PRTTFRRSZZTTNSSL RRN LZZBRRR RRJRRRC",450,30,0,79.2,0,0,0,0,79.2]
[null,"2022-12","ITIE9E14EG","DZZSSZ WJJ JRRNNY SSNTTTNZZRRTSS","68-DJJRRNTT DRR RRMPR- SSDMZZN-PRTTFRRSZZTTNSSL RRN LZZBRRR RRJRRRC",425,30,0,74.8,0,0,0,0,74.8]
[null,"2023-9","I95T2449TE","MTTNTRRCRRL GJJRRRRRRRTT DSSVZZS SSGJJSTZZN","06-CTTDZZGTT DRRL TRSSBSSJTT - CT ",303.3,20,33.82,28.66,0,0,1,3.03,62.48]
[null,"2023-8","I95T2449TE","MTTNTRRCRRL GJJRRRRRRRTT DSSVZZS SSGJJSTZZN","06-CTTDZZGTT DRRL TRSSBSSJTT - CT ",454.95,30,50.73,42.99,0,0,1,4.55,93.72]
[null,"2023-7","I95T2449TE","MTTNTRRCRRL GJJRRRRRRRTT DSSVZZS SSGJJSTZZN","06-CTTDZZGTT DRRL TRSSBSSJTT - CT ",454.95,30,50.73,42.99,0,0,1,4.55,93.72]
[null,"2023-6","I95T2449TE","MTTNTRRCRRL GJJRRRRRRRTT DSSVZZS SSGJJSTZZN","06-CTTDZZGTT DRRL TRSSBSSJTT - CT ",454.95,30,50.73,42.99,0,0,1,4.55,93.72]
[null,"2023-5","I95T2449TE","MTTNTRRCRRL GJJRRRRRRRTT DSSVZZS SSGJJSTZZN","06-CTTDZZGTT DRRL TRSSBSSJTT - CT ",454.95,30,50.73,42.99,0,0,1,4.55,93.72]
[null,"2023-4","I95T2449TE","MTTNTRRCRRL GJJRRRRRRRTT DSSVZZS SSGJJSTZZN","06-CTTDZZGTT DRRL TRSSBSSJTT - CT ",454.95,30,50.73,42.99,0,0,1,4.55,93.72]
[null,"2023-3","I95T2449TE","MTTNTRRCRRL GJJRRRRRRRTT DSSVZZS SSGJJSTZZN","06-CTTDZZGTT DRRL TRSSBSSJTT - CT ",454.95,30,50.73,42.99,0,0,1,4.55,93.72]
[null,"2023-2","I95T2449TE","MTTNTRRCRRL GJJRRRRRRRTT DSSVZZS SSGJJSTZZN","06-CTTDZZGTT DRRL TRSSBSSJTT - CT ",379.13,25,42.27,35.83,0,0,1,3.79,78.099999999999994]
[null,"2023-1","ITIG45G5GE","ZJJMBSS CSSSTRTT NRRCKRRR WZZLFRZZDTT","06-CTTDZZGTT DRRL TRSSBSSJTT - CT ",348.8,23,38.89,32.96,0,0,1,3.49,71.849999999999994]
[null,"2022-12","ITIG45G5GE","ZJJMBSS CSSSTRTT NRRCKRRR WZZLFRZZDTT","06-CTTDZZGTT DRRL TRSSBSSJTT - CT ",429.68,30,47.91,40.6,0,0,1,4.3,88.51]

{"sheet":"HDT IESS","index":3,"n_rows":10,"n_cols":39,"rows_kept":10,"cut":false,"hidden":false,"merged":[[2,14,2,21],[2,22,2,23],[2,25,2,38]]}
[]
[]
[null,null,"XIII | XIV | UTILI",null,null,"XIII | XIV","XIII",null,null,null,null,null,null,null,"XIII | XIV | UTILI",null,null,null,null,null,null,null,"XIII | XIV",null,"XIV","UTILIDADES"]
[null,"NO.","Cédula","Nombre","NA","Suma de Días","Suma de Sueldo","Suma de Patronal","Suma de Individual","Suma de Aporte Adic","Suma de Cesantia","Suma de Valor CCC","Suma de Total Aporte","No. Apellidos","Nombres","Apellidos","Actividad Sectorial","Genero","Tipo de Pago (Pago Directo=P,Acreditación en Cuenta=A,Retencion Pago Directo=RP,Retencion Acreditación en Cuenta=RA)","JORNADA PARCIAL"," HORAS JORNADA PARCIAL SEMANAL","DISCAPACIDAD","Ingrese el valor retenido","MENSUALIZA  PONER X","Fecha de Jubilación","Cargas familiares","RUC EMPRESA","DECIMO TERCERO","DECIMO CUARTO "," UTILIDADES ANTERIORES","SALARIOS PERCIBIDOS AÑO ANTERIOR","FONDOS DE RESERVA AÑO ANTERIOR","COMISIONES DEL AÑO ANTERIOR","BENEFICIOS ADICIONALES","Anticipo de Utilidad ","Retencion Judicial","Impuesto Retencion ","Información MDT","Tipo de Pago Salario Digno"]
[null,1,"ITIG821EIE","CSSMPSSNSS GJJSSNTT JTTSRR SSNTTTNZZTT","(en blanco)",360,5434.1299999999992,605.94000000000005,513.49,0,0,54.349999999999987,1119.43,2,"JTTSRR SSNTTTNZZTT","CSSMPSSNSS GJJSSNTT","1910000000037"]
[null,2,"ITI429E51E","CHTTNG CHSSN FRRLZZX JTTSRR","(en blanco)",360,5479.1600000000017,610.95999999999981,517.79000000000019,0,0,54.820000000000007,1128.75,2,"FRRLZZX JTTSRR","CHTTNG CHSSN","1910000000037"]
[null,3,"IT5IG9G924","DRR LSS CRJJZ PSSLSSCZZTTS LRRTTNRRL SSLRRXSSNDRRR","(en blanco)",59,894.74,99.77,84.550000000000011,0,0,8.9499999999999993,184.32,2,"CRJJZ PSSLSSCZZTTS LRRTTNRRL SSLRRXSSNDRRR","DRR LSS","sin código"]
[null,4,"ITIE9E14EG","DZZSSZ WJJ JRRNNY SSNTTTNZZRRTSS","(en blanco)",360,5375,0,946.00000000000011,0,0,0,946.00000000000011,2,"JRRNNY SSNTTTNZZRRTSS","DZZSSZ WJJ","sin código"]
[null,5,"I95T2449TE","MTTNTRRCRRL GJJRRRRRRRTT DSSVZZS SSGJJSTZZN","(en blanco)",225,3412.1299999999997,380.46999999999997,322.43,0,0,34.120000000000005,702.90000000000009,2,"DSSVZZS SSGJJSTZZN","MTTNTRRCRRL GJJRRRRRRRTT","sin código"]
[null,6,"ITIG45G5GE","ZJJMBSS CSSSTRTT NRRCKRRR WZZLFRZZDTT","(en blanco)",53,778.48,86.8,73.56,0,0,7.79,160.36000000000001,2]

{"sheet":"utilitarios","index":4,"n_rows":7,"n_cols":3,"rows_kept":7,"cut":false,"hidden":true,"merged":[]}
[]
[]
[]
[]
[null,"LIMITEVERSION",5]
[null,"CORREO","micorreo@gmail.com"]
[null,"LOGUEADO","NO"]

{"sheet":"HDT MANUAL","index":5,"n_rows":7,"n_cols":39,"rows_kept":7,"cut":false,"hidden":false,"merged":[[2,14,2,21],[2,22,2,23],[2,25,2,38]]}
[]
[]
[null,null,"XIII | XIV | UTILI",null,null,"XIII | XIV","XIII",null,null,null,null,null,null,null,"XIII | XIV | UTILI",null,null,null,null,null,null,null,"XIII | XIV",null,"XIV","UTILIDADES"]
[null,"NO.","Cédula*","Nombre","NA","Suma de Días","Suma de Sueldo","NA","NA","NA","NA","NA","NA","No. Apellidos","Nombres","Apellidos","Actividad Sectorial","Genero","Tipo de Pago (Pago Directo=P,Acreditación en Cuenta=A,Retencion Pago Directo=RP,Retencion Acreditación en Cuenta=RA)","JORNADA PARCIAL"," HORAS JORNADA PARCIAL SEMANAL","DISCAPACIDAD","Ingrese el valor retenido","MENSUALIZA  PONER X","Fecha de Jubilación","Cargas familiares","RUC DE LA EMPRESA COMPLEMENTARIA O DE UNIFICACION","DECIMO TERCERO","DECIMO CUARTO "," UTILIDADES ANTERIORES","SALARIOS PERCIBIDOS AÑO ANTERIOR","FONDOS DE RESERVA AÑO ANTERIOR","COMISIONES DEL AÑO ANTERIOR","BENEFICIOS ADICIONALES","Anticipo de Utilidad ","Retencion Judicial","Impuesto Retención ","Información MDT","Tipo de Pago Salario Digno"]
[null,null,"ITIG821EIE",null,null,360,5434.1299999999992,null,null,null,null,null,null,null,"JTTSRR SSNTTTNZZTT","CSSMPSSNSS GJJSSNTT","1910000000038","M","P"]
[null,null,"ITIE9E14EG",null,null,360,5375,null,null,null,null,null,null,null,"NRRCKRRR WZZLFRZZDTT","ZJJMBSS CSSSTRTT","1910000000038","M","P"]
[null,null,"ITIG45G5GE",null,null,53,778.48,null,null,null,null,null,null,null,"APELLIDOS","NOMBRES","1910000000038","M","P"]

{"sheet":"XIV","index":6,"n_rows":7,"n_cols":13,"rows_kept":7,"cut":false,"hidden":false,"merged":[]}
["Cédula (Ejm.:0502366503)","Nombres","Apellidos","Genero (Masculino=M ó Femenino=F)","Ocupación(codigo iess)","Días laborados (360 días equivalen a un año)","Tipo de Pago(Pago Directo=P,Acreditación en Cuenta=A,Retencion Pago Directo=RP,Retencion Acreditación en Cuenta=RA)","Solo si el trabajador posee JORNADA PARCIAL PERMANENTE ponga una X","DETERMINE EN HORAS LA JORNADA PARCIAL PERMANENTE SEMANAL ESTIPULADO EN EL CONTRATO","Solo si su trabajador posee algun tipo de discapacidad ponga una X","Fecha de Jubilación","valor Retencion","SOLO SI SU TRABAJADOR MENSUALIZA EL PAGO DE LA DECIMOCUARTA REMUNERACIÓN PONGA UNA X"]
["ITIG821EIE","JTTSRR SSNTTTNZZTT","CSSMPSSNSS GJJSSNTT","M","1910000000037",360,"P"]
["ITI429E51E","FRRLZZX JTTSRR","CHTTNG CHSSN","M","1910000000037",360,"P"]
["IT5IG9G924","CRJJZ PSSLSSCZZTTS LRRTTNRRL SSLRRXSSNDRRR","DRR LSS","M","1910000000037",59,"P"]
["ITIE9E14EG","JRRNNY SSNTTTNZZRRTSS","DZZSSZ WJJ","M","1910000000037",360,"P"]
["I95T2449TE","DSSVZZS SSGJJSTZZN","MTTNTRRCRRL GJJRRRRRRRTT","F","1910000000037",225,"P"]
["ITIG45G5GE","NRRCKRRR WZZLFRZZDTT","ZJJMBSS CSSSTRTT","F","1910000000037",53,"P"]

{"sheet":"XIII","index":7,"n_rows":4,"n_cols":13,"rows_kept":4,"cut":false,"hidden":false,"merged":[]}
["Cédula (Ejm.:0502366503)","Nombres","Apellidos","Genero (Masculino=M ó Femenino=F)","Ocupación","Total_ganado (Ejm.:1000.56)","Días laborados (360 días equivalen a un año)","Tipo de Deposito(Pago Directo=P,Acreditación en Cuenta=A,Retencion Pago Directo=RP,Retencion Acreditación en Cuenta=RA)","Solo si el trabajador posee JORNADA PARCIAL PERMANENTE ponga una X","DETERMINE EN HORAS LA JORNADA PARCIAL PERMANENTE SEMANAL ESTIPULADO EN EL CONTRATO","Solo si su trabajador posee algun tipo de discapacidad ponga una X","Ingrese el valor retenido","SOLO SI SU TRABAJADOR MENSUALIZA EL PAGO DE LA DECIMOTERCERA REMUNERACIÓN PONGA UNA X"]
["ITIG821EIE","JTTSRR SSNTTTNZZTT","CSSMPSSNSS GJJSSNTT","M","1910000000038",5434.1299999999992,360,"P"]
["ITIE9E14EG","NRRCKRRR WZZLFRZZDTT","ZJJMBSS CSSSTRTT","M","1910000000038",5375,360,"P"]
["ITIG45G5GE","APELLIDOS","NOMBRES","M","1910000000038",778.48,53,"P"]

{"sheet":"UTILIDADES","index":8,"n_rows":7,"n_cols":24,"rows_kept":7,"cut":false,"hidden":false,"merged":[]}
["Cédula (Ejm.:0502366503)","Nombres","Apellidos","Genero (Masculino=M ó Femenino=F)","Ocupación","Cargas familiares","Días laborados (360 días equivalen a un año)","Tipo de Pago Utilidad(Pago Directo=P, Depósito MDT=D Para Declaraciones < 2015 y Depósito Empresa = E para Declaraciones >= 2015, Acreditación en Cuenta=A, Retención Pago Directo=RP, Retención Depósito MDT=RD, Retención Acreditación en Cuenta=RA)","JORNADA PARCIAL PERMANENTE(Ponga una X si el trabajador tiene un JORNADA PARCIAL PERMANENTE)","DETERMINE EN HORAS LA JORNADA PARCIAL PERMANENTE SEMANAL ESTIPULADO EN EL CONTRATO","DISCAPACITADOS(Ponga una X si el trabajador tienediscapacidad)","RUC DE LA EMPRESA COMPLEMENTARIA O DE UNIFICACION","DECIMOTERCERO VALOR PROPORCIONAL AL TIEMPO LABORADO 2019","DECIMOCUARTO VALOR PROPORCIONAL AL TIEMPO LABORADO DEL 2019","PARTICIPACION DE UTILIDADES 2018","SALARIOS PERCIBIDOS 2019","FONDOS DE RESERVA 2019","COMISIONES DEL 2019","BENEFICIOS ADICIONALES EN EFECTIVO 2019","Anticipo de Utilidad","Retencion Judicial","Impuesto Retencion ","Información MDT(No ingrese datos en esta columna)","Tipo de Pago Salario Digno(Pago Directo=P, Depósito MDT=D Para Declaraciones < 2015 y Depósito Empresa = E para Declaraciones >= 2015, Acreditación en Cuenta=A)"]
["ITIG821EIE","JTTSRR SSNTTTNZZTT","CSSMPSSNSS GJJSSNTT","M","1910000000037",0,360,"P",null,null,null,null,null,null,null,null,null,null,null,null,null,null,null,"P"]
["ITI429E51E","FRRLZZX JTTSRR","CHTTNG CHSSN","M","1910000000037",1,360,"P",null,null,null,null,null,null,null,null,null,null,null,null,null,null,null,"P"]
["IT5IG9G924","CRJJZ PSSLSSCZZTTS LRRTTNRRL SSLRRXSSNDRRR","DRR LSS","M","1910000000037",2,59,"P",null,null,null,null,null,null,null,null,null,null,null,null,null,null,null,"P"]
["ITIE9E14EG","JRRNNY SSNTTTNZZRRTSS","DZZSSZ WJJ","M","1910000000037",0,360,"P",null,null,null,null,null,null,null,null,null,null,null,null,null,null,null,"P"]
["I95T2449TE","DSSVZZS SSGJJSTZZN","MTTNTRRCRRL GJJRRRRRRRTT","F","1910000000037",0,225,"P",null,null,null,null,null,null,null,null,null,null,null,null,null,null,null,"P"]
["ITIG45G5GE","NRRCKRRR WZZLFRZZDTT","ZJJMBSS CSSSTRTT","F","1910000000037",0,53,"P",null,null,null,null,null,null,null,null,null,null,null,null,null,null,null,"P"]

{"sheet":"Cálculos_Utilidades","index":9,"n_rows":504,"n_cols":20,"rows_kept":504,"cut":false,"hidden":false,"merged":[[1,1,1,13]]}
[null,null,null,null,null,null,null,null,null,null,null,null,null,null,null,"UTILIDAD DECLARADA",9588.2999999999993,null,"CONST. 5",{"$f":"IF(T4=0,0,Q3/T4)","v":1.0029602510460249}]
[null,"Cálculo de Utilidades",null,null,null,null,null,null,null,null,null,null,null,null,null,"15 % PARTICIP. TRABAJ.",{"$f":"Q1*0.15","v":1438.2449999999999},null,"CONST.10",{"$f":"IF(COUNTIF(G:G,\">0\")>limite,0,IF(T4=0,(Q2/T3), Q4/T3))","v":0}]
[null,null,null,null,null,null,null,null,null,null,null,null,null,null,null,"VALOR 5%",{"$f":"Q1*0.05","v":479.41499999999996},null,"DIAS",{"$f":"SUM($G$6:$G$13995)","v":1417}]
[null,null,null,null,null,null,null,null,null,null,null,null,null,null,null,"VALOR 10%",{"$f":"Q1*0.1","v":958.82999999999993},null,"DIAS X CARGAS",{"$f":"SUM($T$6:$T$16995)","v":478}]
["No.","CEDULA","NOMBRES","APELLIDOS","OCUPACIÓN","CARGAS FAMILIARES","DIAS TRABAJADOS","DISTRIBUCIÓN EQUITATIVA DE TRABAJADORES","DISTRIBUCIÓN POR CARGAS","ANTICIPOS UTILIDADES ","IMPUESTO RETENCIÓN","RETENCIÓN JUDICIAL","PARTICIPACIÓN UTILIDADES","FIMA O HUELLA DIGITAL",null,null,null,null,null,"DIAS POR CARGAS"]
[1,"ITIG821EIE","JTTSRR SSNTTTNZZTT","CSSMPSSNSS GJJSSNTT","1910000000037",0,360,{"$f":"G6*$T$2","v":0},{"$f":"T6*$T$1","v":0},null,null,null,{"$f":"H6+I6-J6-K6-L6","v":0},null,null,null,null,null,null,{"$f":"F6*G6","v":0}]
[2,"ITI429E51E","FRRLZZX JTTSRR","CHTTNG CHSSN","1910000000037",1,360,0,361.06569037656897,null,null,null,{"$f":"H7+I7-J7-K7-L7","v":361.06569037656897},null,null,null,null,null,null,{"$f":"F7*G7","v":360}]
[3,"IT5IG9G924","CRJJZ PSSLSSCZZTTS LRRTTNRRL SSLRRXSSNDRRR","DRR LSS","1910000000037",2,59,0,118.34930962343094,null,null,null,118.34930962343094,null,null,null,null,null,null,118]
[4,"ITIE9E14EG","JRRNNY SSNTTTNZZRRTSS","DZZSSZ WJJ","1910000000037",0,360,0,0,null,null,null,0,null,null,null,null,null,null,0]
[5,"I95T2449TE","DSSVZZS SSGJJSTZZN","MTTNTRRCRRL GJJRRRRRRRTT","1910000000037",0,225,0,0,null,null,null,0,null,null,null,null,null,null,0]
[6,"ITIG45G5GE","NRRCKRRR WZZLFRZZDTT","ZJJMBSS CSSSTRTT","1910000000037",0,53,0,0,null,null,null,0,null,null,null,null,null,null,0]
[8,null,null,null,null,null,null,0,0,null,null,null,0,null,null,null,null,null,null,0]
[9,null,null,null,null,null,null,0,0,null,null,null,0,null,null,null,null,null,null,0]
[10,null,null,null,null,null,null,0,0,null,null,null,0,null,null,null,null,null,null,0]
[11,null,null,null,null,null,null,0,0,null,null,null,0,null,null,null,null,null,null,0]
[12,null,null,null,null,null,null,0,0,null,null,null,0,null,null,null,null,null,null,0]
[13,null,null,null,null,null,null,0,0,null,null,null,0,null,null,null,null,null,null,0]
[14,null,null,null,null,null,null,0,0,null,null,null,0,null,null,null,null,null,null,0]
[15,null,null,null,null,null,null,0,0,null,null,null,0,null,null,null,null,null,null,0]
[16,null,null,null,null,null,null,0,0,null,null,null,0,null,null,null,null,null,null,0]
[17,null,null,null,null,null,null,0,0,null,null,null,0,null,null,null,null,null,null,0]
[18,null,null,null,null,null,null,0,0,null,null,null,0,null,null,null,null,null,null,0]
[19,null,null,null,null,null,null,0,0,null,null,null,0,null,null,null,null,null,null,0]
[20,null,null,null,null,null,null,0,0,null,null,null,0,null,null,null,null,null,null,0]
[21,null,null,null,null,null,null,0,0,null,null,null,0,null,null,null,null,null,null,0]
[22,null,null,null,null,null,null,0,0,null,null,null,0,null,null,null,null,null,null,0]
[23,null,null,null,null,null,null,0,0,null,null,null,0,null,null,null,null,null,null,0]
[24,null,null,null,null,null,null,0,0,null,null,null,0,null,null,null,null,null,null,0]
[25,null,null,null,null,null,null,0,0,null,null,null,0,null,null,null,null,null,null,0]
[26,null,null,null,null,null,null,0,0,null,null,null,0,null,null,null,null,null,null,0]
[27,null,null,null,null,null,null,0,0,null,null,null,0,null,null,null,null,null,null,0]
[28,null,null,null,null,null,null,0,0,null,null,null,0,null,null,null,null,null,null,0]
[29,null,null,null,null,null,null,0,0,null,null,null,0,null,null,null,null,null,null,0]
[30,null,null,null,null,null,null,0,0,null,null,null,0,null,null,null,null,null,null,0]
[31,null,null,null,null,null,null,0,0,null,null,null,0,null,null,null,null,null,null,0]
[32,null,null,null,null,null,null,0,0,null,null,null,0,null,null,null,null,null,null,0]
[33,null,null,null,null,null,null,0,0,null,null,null,0,null,null,null,null,null,null,0]
[34,null,null,null,null,null,null,0,0,null,null,null,0,null,null,null,null,null,null,0]
[35,null,null,null,null,null,null,0,0,null,null,null,0,null,null,null,null,null,null,0]
[36,null,null,null,null,null,null,0,0,null,null,null,0,null,null,null,null,null,null,0]
[37,null,null,null,null,null,null,0,0,null,null,null,0,null,null,null,null,null,null,0]
[38,null,null,null,null,null,null,0,0,null,null,null,0,null,null,null,null,null,null,0]
[39,null,null,null,null,null,null,0,0,null,null,null,0,null,null,null,null,null,null,0]
[40,null,null,null,null,null,null,0,0,null,null,null,0,null,null,null,null,null,null,0]
[41,null,null,null,null,null,null,0,0,null,null,null,0,null,null,null,null,null,null,0]
[42,null,null,null,null,null,null,0,0,null,null,null,0,null,null,null,null,null,null,0]
[43,null,null,null,null,null,null,0,0,null,null,null,0,null,null,null,null,null,null,0]
[44,null,null,null,null,null,null,0,0,null,null,null,0,null,null,null,null,null,null,0]
[45,null,null,null,null,null,null,0,0,null,null,null,0,null,null,null,null,null,null,0]
[46,null,null,null,null,null,null,0,0,null,null,null,0,null,null,null,null,null,null,0]
[47,null,null,null,null,null,null,0,0,null,null,null,0,null,null,null,null,null,null,0]
[48,null,null,null,null,null,null,0,0,null,null,null,0,null,null,null,null,null,null,0]
[49,null,null,null,null,null,null,0,0,null,null,null,0,null,null,null,null,null,null,0]
[50,null,null,null,null,null,null,0,0,null,null,null,0,null,null,null,null,null,null,0]
[51,null,null,null,null,null,null,0,0,null,null,null,0,null,null,null,null,null,null,0]
[52,null,null,null,null,null,null,0,0,null,null,null,0,null,null,null,null,null,null,0]
[53,null,null,null,null,null,null,0,0,null,null,null,0,null,null,null,null,null,null,0]
[54,null,null,null,null,null,null,0,0,null,null,null,0,null,null,null,null,null,null,0]
[55,null,null,null,null,null,null,0,0,null,null,null,0,null,null,null,null,null,null,0]
[56,null,null,null,null,null,null,0,0,null,null,null,0,null,null,null,null,null,null,0]
[57,null,null,null,null,null,null,0,0,null,null,null,0,null,null,null,null,null,null,0]
[58,null,null,null,null,null,null,0,0,null,null,null,0,null,null,null,null,null,null,0]
[59,null,null,null,null,null,null,0,0,null,null,null,0,null,null,null,null,null,null,0]
[60,null,null,null,null,null,null,0,0,null,null,null,0,null,null,null,null,null,null,0]
[61,null,null,null,null,null,null,0,0,null,null,null,0,null,null,null,null,null,null,0]
[62,null,null,null,null,null,null,0,0,null,null,null,0,null,null,null,null,null,null,0]
[63,null,null,null,null,null,null,0,0,null,null,null,0,null,null,null,null,null,null,0]
[64,null,null,null,null,null,null,0,0,null,null,null,0,null,null,null,null,null,null,0]
[65,null,null,null,null,null,null,{"$f":"G69*$T$2","v":0},{"$f":"T69*$T$1","v":0},null,null,null,0,null,null,null,null,null,null,0]
[66,null,null,null,null,null,null,0,0,null,null,null,{"$f":"H70+I70-J70-K70-L70","v":0},null,null,null,null,null,null,{"$f":"F70*G70","v":0}]
[67,null,null,null,null,null,null,0,0,null,null,null,0,null,null,null,null,null,null,0]
[68,null,null,null,null,null,null,0,0,null,null,null,0,null,null,null,null,null,null,0]
[69,null,null,null,null,null,null,0,0,null,null,null,0,null,null,null,null,null,null,0]
[70,null,null,null,null,null,null,0,0,null,null,null,0,null,null,null,null,null,null,0]
[71,null,null,null,null,null,null,0,0,null,null,null,0,null,null,null,null,null,null,0]
[72,null,null,null,null,null,null,0,0,null,null,null,0,null,null,null,null,null,null,0]
[73,null,null,null,null,null,null,0,0,null,null,null,0,null,null,null,null,null,null,0]
[74,null,null,null,null,null,null,0,0,null,null,null,0,null,null,null,null,null,null,0]
[75,null,null,null,null,null,null,0,0,null,null,null,0,null,null,null,null,null,null,0]
[76,null,null,null,null,null,null,0,0,null,null,null,0,null,null,null,null,null,null,0]
[77,null,null,null,null,null,null,0,0,null,null,null,0,null,null,null,null,null,null,0]
[78,null,null,null,null,null,null,0,0,null,null,null,0,null,null,null,null,null,null,0]
[79,null,null,null,null,null,null,0,0,null,null,null,0,null,null,null,null,null,null,0]
[80,null,null,null,null,null,null,0,0,null,null,null,0,null,null,null,null,null,null,0]
[81,null,null,null,null,null,null,0,0,null,null,null,0,null,null,null,null,null,null,0]
[82,null,null,null,null,null,null,0,0,null,null,null,0,null,null,null,null,null,null,0]
[83,null,null,null,null,null,null,0,0,null,null,null,0,null,null,null,null,null,null,0]
[84,null,null,null,null,null,null,0,0,null,null,null,0,null,null,null,null,null,null,0]
[85,null,null,null,null,null,null,0,0,null,null,null,0,null,null,null,null,null,null,0]
[86,null,null,null,null,null,null,0,0,null,null,null,0,null,null,null,null,null,null,0]
[87,null,null,null,null,null,null,0,0,null,null,null,0,null,null,null,null,null,null,0]
[88,null,null,null,null,null,null,0,0,null,null,null,0,null,null,null,null,null,null,0]
[89,null,null,null,null,null,null,0,0,null,null,null,0,null,null,null,null,null,null,0]
[90,null,null,null,null,null,null,0,0,null,null,null,0,null,null,null,null,null,null,0]
[91,null,null,null,null,null,null,0,0,null,null,null,0,null,null,null,null,null,null,0]
[92,null,null,null,null,null,null,0,0,null,null,null,0,null,null,null,null,null,null,0]
[93,null,null,null,null,null,null,0,0,null,null,null,0,null,null,null,null,null,null,0]
[94,null,null,null,null,null,null,0,0,null,null,null,0,null,null,null,null,null,null,0]
[95,null,null,null,null,null,null,0,0,null,null,null,0,null,null,null,null,null,null,0]
[96,null,null,null,null,null,null,0,0,null,null,null,0,null,null,null,null,null,null,0]
[97,null,null,null,null,null,null,0,0,null,null,null,0,null,null,null,null,null,null,0]
[98,null,null,null,null,null,null,0,0,null,null,null,0,null,null,null,null,null,null,0]
[99,null,null,null,null,null,null,0,0,null,null,null,0,null,null,null,null,null,null,0]
[100,null,null,null,null,null,null,0,0,null,null,null,0,null,null,null,null,null,null,0]
[101,null,null,null,null,null,null,0,0,null,null,null,0,null,null,null,null,null,null,0]
[102,null,null,null,null,null,null,0,0,null,null,null,0,null,null,null,null,null,null,0]
[103,null,null,null,null,null,null,0,0,null,null,null,0,null,null,null,null,null,null,0]
[104,null,null,null,null,null,null,0,0,null,null,null,0,null,null,null,null,null,null,0]
[105,null,null,null,null,null,null,0,0,null,null,null,0,null,null,null,null,null,null,0]
[106,null,null,null,null,null,null,0,0,null,null,null,0,null,null,null,null,null,null,0]
[107,null,null,null,null,null,null,0,0,null,null,null,0,null,null,null,null,null,null,0]
[108,null,null,null,null,null,null,0,0,null,null,null,0,null,null,null,null,null,null,0]
[109,null,null,null,null,null,null,0,0,null,null,null,0,null,null,null,null,null,null,0]
[110,null,null,null,null,null,null,0,0,null,null,null,0,null,null,null,null,null,null,0]
[111,null,null,null,null,null,null,0,0,null,null,null,0,null,null,null,null,null,null,0]
[112,null,null,null,null,null,null,0,0,null,null,null,0,null,null,null,null,null,null,0]
[113,null,null,null,null,null,null,0,0,null,null,null,0,null,null,null,null,null,null,0]
[114,null,null,null,null,null,null,0,0,null,null,null,0,null,null,null,null,null,null,0]
[115,null,null,null,null,null,null,0,0,null,null,null,0,null,null,null,null,null,null,0]
[116,null,null,null,null,null,null,0,0,null,null,null,0,null,null,null,null,null,null,0]
[117,null,null,null,null,null,null,0,0,null,null,null,0,null,null,null,null,null,null,0]
[118,null,null,null,null,null,null,0,0,null,null,null,0,null,null,null,null,null,null,0]
[119,null,null,null,null,null,null,0,0,null,null,null,0,null,null,null,null,null,null,0]
[120,null,null,null,null,null,null,0,0,null,null,null,0,null,null,null,null,null,null,0]
[121,null,null,null,null,null,null,0,0,null,null,null,0,null,null,null,null,null,null,0]
[122,null,null,null,null,null,null,0,0,null,null,null,0,null,null,null,null,null,null,0]
[123,null,null,null,null,null,null,0,0,null,null,null,0,null,null,null,null,null,null,0]
[124,null,null,null,null,null,null,0,0,null,null,null,0,null,null,null,null,null,null,0]
[125,null,null,null,null,null,null,0,0,null,null,null,0,null,null,null,null,null,null,0]
[126,null,null,null,null,null,null,0,0,null,null,null,0,null,null,null,null,null,null,0]
[127,null,null,null,null,null,null,0,0,null,null,null,0,null,null,null,null,null,null,0]
[128,null,null,null,null,null,null,0,0,null,null,null,0,null,null,null,null,null,null,0]
[129,null,null,null,null,null,null,{"$f":"G133*$T$2","v":0},{"$f":"T133*$T$1","v":0},null,null,null,0,null,null,null,null,null,null,0]
[130,null,null,null,null,null,null,0,0,null,null,null,{"$f":"H134+I134-J134-K134-L134","v":0},null,null,null,null,null,null,{"$f":"F134*G134","v":0}]
[131,null,null,null,null,null,null,0,0,null,null,null,0,null,null,null,null,null,null,0]
[132,null,null,null,null,null,null,0,0,null,null,null,0,null,null,null,null,null,null,0]
[133,null,null,null,null,null,null,0,0,null,null,null,0,null,null,null,null,null,null,0]
[134,null,null,null,null,null,null,0,0,null,null,null,0,null,null,null,null,null,null,0]
[135,null,null,null,null,null,null,0,0,null,null,null,0,null,null,null,null,null,null,0]
[136,null,null,null,null,null,null,0,0,null,null,null,0,null,null,null,null,null,null,0]
[137,null,null,null,null,null,null,0,0,null,null,null,0,null,null,null,null,null,null,0]
[138,null,null,null,null,null,null,0,0,null,null,null,0,null,null,null,null,null,null,0]
[139,null,null,null,null,null,null,0,0,null,null,null,0,null,null,null,null,null,null,0]
[140,null,null,null,null,null,null,0,0,null,null,null,0,null,null,null,null,null,null,0]
[141,null,null,null,null,null,null,0,0,null,null,null,0,null,null,null,null,null,null,0]
[142,null,null,null,null,null,null,0,0,null,null,null,0,null,null,null,null,null,null,0]
[143,null,null,null,null,null,null,0,0,null,null,null,0,null,null,null,null,null,null,0]
[144,null,null,null,null,null,null,0,0,null,null,null,0,null,null,null,null,null,null,0]
[145,null,null,null,null,null,null,0,0,null,null,null,0,null,null,null,null,null,null,0]
[146,null,null,null,null,null,null,0,0,null,null,null,0,null,null,null,null,null,null,0]
[147,null,null,null,null,null,null,0,0,null,null,null,0,null,null,null,null,null,null,0]
[148,null,null,null,null,null,null,0,0,null,null,null,0,null,null,null,null,null,null,0]
[149,null,null,null,null,null,null,0,0,null,null,null,0,null,null,null,null,null,null,0]
[150,null,null,null,null,null,null,0,0,null,null,null,0,null,null,null,null,null,null,0]
[151,null,null,null,null,null,null,0,0,null,null,null,0,null,null,null,null,null,null,0]
[152,null,null,null,null,null,null,0,0,null,null,null,0,null,null,null,null,null,null,0]
[153,null,null,null,null,null,null,0,0,null,null,null,0,null,null,null,null,null,null,0]
[154,null,null,null,null,null,null,0,0,null,null,null,0,null,null,null,null,null,null,0]
[155,null,null,null,null,null,null,0,0,null,null,null,0,null,null,null,null,null,null,0]
[156,null,null,null,null,null,null,0,0,null,null,null,0,null,null,null,null,null,null,0]
[157,null,null,null,null,null,null,0,0,null,null,null,0,null,null,null,null,null,null,0]
[158,null,null,null,null,null,null,0,0,null,null,null,0,null,null,null,null,null,null,0]
[159,null,null,null,null,null,null,0,0,null,null,null,0,null,null,null,null,null,null,0]
[160,null,null,null,null,null,null,0,0,null,null,null,0,null,null,null,null,null,null,0]
[161,null,null,null,null,null,null,0,0,null,null,null,0,null,null,null,null,null,null,0]
[162,null,null,null,null,null,null,0,0,null,null,null,0,null,null,null,null,null,null,0]
[163,null,null,null,null,null,null,0,0,null,null,null,0,null,null,null,null,null,null,0]
[164,null,null,null,null,null,null,0,0,null,null,null,0,null,null,null,null,null,null,0]
[165,null,null,null,null,null,null,0,0,null,null,null,0,null,null,null,null,null,null,0]
[166,null,null,null,null,null,null,0,0,null,null,null,0,null,null,null,null,null,null,0]
[167,null,null,null,null,null,null,0,0,null,null,null,0,null,null,null,null,null,null,0]
[168,null,null,null,null,null,null,0,0,null,null,null,0,null,null,null,null,null,null,0]
[169,null,null,null,null,null,null,0,0,null,null,null,0,null,null,null,null,null,null,0]
[170,null,null,null,null,null,null,0,0,null,null,null,0,null,null,null,null,null,null,0]
[171,null,null,null,null,null,null,0,0,null,null,null,0,null,null,null,null,null,null,0]
[172,null,null,null,null,null,null,0,0,null,null,null,0,null,null,null,null,null,null,0]
[173,null,null,null,null,null,null,0,0,null,null,null,0,null,null,null,null,null,null,0]
[174,null,null,null,null,null,null,0,0,null,null,null,0,null,null,null,null,null,null,0]
[175,null,null,null,null,null,null,0,0,null,null,null,0,null,null,null,null,null,null,0]
[176,null,null,null,null,null,null,0,0,null,null,null,0,null,null,null,null,null,null,0]
[177,null,null,null,null,null,null,0,0,null,null,null,0,null,null,null,null,null,null,0]
[178,null,null,null,null,null,null,0,0,null,null,null,0,null,null,null,null,null,null,0]
[179,null,null,null,null,null,null,0,0,null,null,null,0,null,null,null,null,null,null,0]
[180,null,null,null,null,null,null,0,0,null,null,null,0,null,null,null,null,null,null,0]
[181,null,null,null,null,null,null,0,0,null,null,null,0,null,null,null,null,null,null,0]
[182,null,null,null,null,null,null,0,0,null,null,null,0,null,null,null,null,null,null,0]
[183,null,null,null,null,null,null,0,0,null,null,null,0,null,null,null,null,null,null,0]
[184,null,null,null,null,null,null,0,0,null,null,null,0,null,null,null,null,null,null,0]
[185,null,null,null,null,null,null,0,0,null,null,null,0,null,null,null,null,null,null,0]
[186,null,null,null,null,null,null,0,0,null,null,null,0,null,null,null,null,null,null,0]
[187,null,null,null,null,null,null,0,0,null,null,null,0,null,null,null,null,null,null,0]
[188,null,null,null,null,null,null,0,0,null,null,null,0,null,null,null,null,null,null,0]
[189,null,null,null,null,null,null,0,0,null,null,null,0,null,null,null,null,null,null,0]
[190,null,null,null,null,null,null,0,0,null,null,null,0,null,null,null,null,null,null,0]
[191,null,null,null,null,null,null,0,0,null,null,null,0,null,null,null,null,null,null,0]
[192,null,null,null,null,null,null,0,0,null,null,null,0,null,null,null,null,null,null,0]
[193,null,null,null,null,null,null,{"$f":"G197*$T$2","v":0},{"$f":"T197*$T$1","v":0},null,null,null,0,null,null,null,null,null,null,0]
[194,null,null,null,null,null,null,0,0,null,null,null,{"$f":"H198+I198-J198-K198-L198","v":0},null,null,null,null,null,null,{"$f":"F198*G198","v":0}]
[195,null,null,null,null,null,null,0,0,null,null,null,0,null,null,null,null,null,null,0]
[196,null,null,null,null,null,null,0,0,null,null,null,0,null,null,null,null,null,null,0]
[197,null,null,null,null,null,null,0,0,null,null,null,0,null,null,null,null,null,null,0]
[198,null,null,null,null,null,null,0,0,null,null,null,0,null,null,null,null,null,null,0]
[199,null,null,null,null,null,null,0,0,null,null,null,0,null,null,null,null,null,null,0]
[200,null,null,null,null,null,null,0,0,null,null,null,0,null,null,null,null,null,null,0]
[201,null,null,null,null,null,null,0,0,null,null,null,0,null,null,null,null,null,null,0]
[202,null,null,null,null,null,null,0,0,null,null,null,0,null,null,null,null,null,null,0]
[203,null,null,null,null,null,null,0,0,null,null,null,0,null,null,null,null,null,null,0]
[204,null,null,null,null,null,null,0,0,null,null,null,0,null,null,null,null,null,null,0]
[205,null,null,null,null,null,null,0,0,null,null,null,0,null,null,null,null,null,null,0]
[206,null,null,null,null,null,null,0,0,null,null,null,0,null,null,null,null,null,null,0]
[207,null,null,null,null,null,null,0,0,null,null,null,0,null,null,null,null,null,null,0]
[208,null,null,null,null,null,null,0,0,null,null,null,0,null,null,null,null,null,null,0]
[209,null,null,null,null,null,null,0,0,null,null,null,0,null,null,null,null,null,null,0]
[210,null,null,null,null,null,null,0,0,null,null,null,0,null,null,null,null,null,null,0]
[211,null,null,null,null,null,null,0,0,null,null,null,0,null,null,null,null,null,null,0]
[212,null,null,null,null,null,null,0,0,null,null,null,0,null,null,null,null,null,null,0]
[213,null,null,null,null,null,null,0,0,null,null,null,0,null,null,null,null,null,null,0]
[214,null,null,null,null,null,null,0,0,null,null,null,0,null,null,null,null,null,null,0]
[215,null,null,null,null,null,null,0,0,null,null,null,0,null,null,null,null,null,null,0]
[216,null,null,null,null,null,null,0,0,null,null,null,0,null,null,null,null,null,null,0]
[217,null,null,null,null,null,null,0,0,null,null,null,0,null,null,null,null,null,null,0]
[218,null,null,null,null,null,null,0,0,null,null,null,0,null,null,null,null,null,null,0]
[219,null,null,null,null,null,null,0,0,null,null,null,0,null,null,null,null,null,null,0]
[220,null,null,null,null,null,null,0,0,null,null,null,0,null,null,null,null,null,null,0]
[221,null,null,null,null,null,null,0,0,null,null,null,0,null,null,null,null,null,null,0]
[222,null,null,null,null,null,null,0,0,null,null,null,0,null,null,null,null,null,null,0]
[223,null,null,null,null,null,null,0,0,null,null,null,0,null,null,null,null,null,null,0]
[224,null,null,null,null,null,null,0,0,null,null,null,0,null,null,null,null,null,null,0]
[225,null,null,null,null,null,null,0,0,null,null,null,0,null,null,null,null,null,null,0]
[226,null,null,null,null,null,null,0,0,null,null,null,0,null,null,null,null,null,null,0]
[227,null,null,null,null,null,null,0,0,null,null,null,0,null,null,null,null,null,null,0]
[228,null,null,null,null,null,null,0,0,null,null,null,0,null,null,null,null,null,null,0]
[229,null,null,null,null,null,null,0,0,null,null,null,0,null,null,null,null,null,null,0]
[230,null,null,null,null,null,null,0,0,null,null,null,0,null,null,null,null,null,null,0]
[231,null,null,null,null,null,null,0,0,null,null,null,0,null,null,null,null,null,null,0]
[232,null,null,null,null,null,null,0,0,null,null,null,0,null,null,null,null,null,null,0]
[233,null,null,null,null,null,null,0,0,null,null,null,0,null,null,null,null,null,null,0]
[234,null,null,null,null,null,null,0,0,null,null,null,0,null,null,null,null,null,null,0]
[235,null,null,null,null,null,null,0,0,null,null,null,0,null,null,null,null,null,null,0]
[236,null,null,null,null,null,null,0,0,null,null,null,0,null,null,null,null,null,null,0]
[237,null,null,null,null,null,null,0,0,null,null,null,0,null,null,null,null,null,null,0]
[238,null,null,null,null,null,null,0,0,null,null,null,0,null,null,null,null,null,null,0]
[239,null,null,null,null,null,null,0,0,null,null,null,0,null,null,null,null,null,null,0]
[240,null,null,null,null,null,null,0,0,null,null,null,0,null,null,null,null,null,null,0]
[241,null,null,null,null,null,null,0,0,null,null,null,0,null,null,null,null,null,null,0]
[242,null,null,null,null,null,null,0,0,null,null,null,0,null,null,null,null,null,null,0]
[243,null,null,null,null,null,null,0,0,null,null,null,0,null,null,null,null,null,null,0]
[244,null,null,null,null,null,null,0,0,null,null,null,0,null,null,null,null,null,null,0]
[245,null,null,null,null,null,null,0,0,null,null,null,0,null,null,null,null,null,null,0]
[246,null,null,null,null,null,null,0,0,null,null,null,0,null,null,null,null,null,null,0]
[247,null,null,null,null,null,null,0,0,null,null,null,0,null,null,null,null,null,null,0]
[248,null,null,null,null,null,null,0,0,null,null,null,0,null,null,null,null,null,null,0]
[249,null,null,null,null,null,null,0,0,null,null,null,0,null,null,null,null,null,null,0]
[250,null,null,null,null,null,null,0,0,null,null,null,0,null,null,null,null,null,null,0]
[251,null,null,null,null,null,null,0,0,null,null,null,0,null,null,null,null,null,null,0]
[252,null,null,null,null,null,null,0,0,null,null,null,0,null,null,null,null,null,null,0]
[253,null,null,null,null,null,null,0,0,null,null,null,0,null,null,null,null,null,null,0]
[254,null,null,null,null,null,null,0,0,null,null,null,0,null,null,null,null,null,null,0]
[255,null,null,null,null,null,null,0,0,null,null,null,0,null,null,null,null,null,null,0]
[256,null,null,null,null,null,null,0,0,null,null,null,0,null,null,null,null,null,null,0]
[257,null,null,null,null,null,null,{"$f":"G261*$T$2","v":0},{"$f":"T261*$T$1","v":0},null,null,null,0,null,null,null,null,null,null,0]
[258,null,null,null,null,null,null,0,0,null,null,null,{"$f":"H262+I262-J262-K262-L262","v":0},null,null,null,null,null,null,{"$f":"F262*G262","v":0}]
[259,null,null,null,null,null,null,0,0,null,null,null,0,null,null,null,null,null,null,0]
[260,null,null,null,null,null,null,0,0,null,null,null,0,null,null,null,null,null,null,0]
[261,null,null,null,null,null,null,0,0,null,null,null,0,null,null,null,null,null,null,0]
[262,null,null,null,null,null,null,0,0,null,null,null,0,null,null,null,null,null,null,0]
[263,null,null,null,null,null,null,0,0,null,null,null,0,null,null,null,null,null,null,0]
[264,null,null,null,null,null,null,0,0,null,null,null,0,null,null,null,null,null,null,0]
[265,null,null,null,null,null,null,0,0,null,null,null,0,null,null,null,null,null,null,0]
[266,null,null,null,null,null,null,0,0,null,null,null,0,null,null,null,null,null,null,0]
[267,null,null,null,null,null,null,0,0,null,null,null,0,null,null,null,null,null,null,0]
[268,null,null,null,null,null,null,0,0,null,null,null,0,null,null,null,null,null,null,0]
[269,null,null,null,null,null,null,0,0,null,null,null,0,null,null,null,null,null,null,0]
[270,null,null,null,null,null,null,0,0,null,null,null,0,null,null,null,null,null,null,0]
[271,null,null,null,null,null,null,0,0,null,null,null,0,null,null,null,null,null,null,0]
[272,null,null,null,null,null,null,0,0,null,null,null,0,null,null,null,null,null,null,0]
[273,null,null,null,null,null,null,0,0,null,null,null,0,null,null,null,null,null,null,0]
[274,null,null,null,null,null,null,0,0,null,null,null,0,null,null,null,null,null,null,0]
[275,null,null,null,null,null,null,0,0,null,null,null,0,null,null,null,null,null,null,0]
[276,null,null,null,null,null,null,0,0,null,null,null,0,null,null,null,null,null,null,0]
[277,null,null,null,null,null,null,0,0,null,null,null,0,null,null,null,null,null,null,0]
[278,null,null,null,null,null,null,0,0,null,null,null,0,null,null,null,null,null,null,0]
[279,null,null,null,null,null,null,0,0,null,null,null,0,null,null,null,null,null,null,0]
[280,null,null,null,null,null,null,0,0,null,null,null,0,null,null,null,null,null,null,0]
[281,null,null,null,null,null,null,0,0,null,null,null,0,null,null,null,null,null,null,0]
[282,null,null,null,null,null,null,0,0,null,null,null,0,null,null,null,null,null,null,0]
[283,null,null,null,null,null,null,0,0,null,null,null,0,null,null,null,null,null,null,0]
[284,null,null,null,null,null,null,0,0,null,null,null,0,null,null,null,null,null,null,0]
[285,null,null,null,null,null,null,0,0,null,null,null,0,null,null,null,null,null,null,0]
[286,null,null,null,null,null,null,0,0,null,null,null,0,null,null,null,null,null,null,0]
[287,null,null,null,null,null,null,0,0,null,null,null,0,null,null,null,null,null,null,0]
[288,null,null,null,null,null,null,0,0,null,null,null,0,null,null,null,null,null,null,0]
[289,null,null,null,null,null,null,0,0,null,null,null,0,null,null,null,null,null,null,0]
[290,null,null,null,null,null,null,0,0,null,null,null,0,null,null,null,null,null,null,0]
[291,null,null,null,null,null,null,0,0,null,null,null,0,null,null,null,null,null,null,0]
[292,null,null,null,null,null,null,0,0,null,null,null,0,null,null,null,null,null,null,0]
[293,null,null,null,null,null,null,0,0,null,null,null,0,null,null,null,null,null,null,0]
[294,null,null,null,null,null,null,0,0,null,null,null,0,null,null,null,null,null,null,0]
[295,null,null,null,null,null,null,0,0,null,null,null,0,null,null,null,null,null,null,0]
[296,null,null,null,null,null,null,0,0,null,null,null,0,null,null,null,null,null,null,0]
[297,null,null,null,null,null,null,0,0,null,null,null,0,null,null,null,null,null,null,0]
[298,null,null,null,null,null,null,0,0,null,null,null,0,null,null,null,null,null,null,0]
[299,null,null,null,null,null,null,0,0,null,null,null,0,null,null,null,null,null,null,0]
[300,null,null,null,null,null,null,0,0,null,null,null,0,null,null,null,null,null,null,0]
[301,null,null,null,null,null,null,0,0,null,null,null,0,null,null,null,null,null,null,0]
[302,null,null,null,null,null,null,0,0,null,null,null,0,null,null,null,null,null,null,0]
[303,null,null,null,null,null,null,0,0,null,null,null,0,null,null,null,null,null,null,0]
[304,null,null,null,null,null,null,0,0,null,null,null,0,null,null,null,null,null,null,0]
[305,null,null,null,null,null,null,0,0,null,null,null,0,null,null,null,null,null,null,0]
[306,null,null,null,null,null,null,0,0,null,null,null,0,null,null,null,null,null,null,0]
[307,null,null,null,null,null,null,0,0,null,null,null,0,null,null,null,null,null,null,0]
[308,null,null,null,null,null,null,0,0,null,null,null,0,null,null,null,null,null,null,0]
[309,null,null,null,null,null,null,0,0,null,null,null,0,null,null,null,null,null,null,0]
[310,null,null,null,null,null,null,0,0,null,null,null,0,null,null,null,null,null,null,0]
[311,null,null,null,null,null,null,0,0,null,null,null,0,null,null,null,null,null,null,0]
[312,null,null,null,null,null,null,0,0,null,null,null,0,null,null,null,null,null,null,0]
[313,null,null,null,null,null,null,0,0,null,null,null,0,null,null,null,null,null,null,0]
[314,null,null,null,null,null,null,0,0,null,null,null,0,null,null,null,null,null,null,0]
[315,null,null,null,null,null,null,0,0,null,null,null,0,null,null,null,null,null,null,0]
[316,null,null,null,null,null,null,0,0,null,null,null,0,null,null,null,null,null,null,0]
[317,null,null,null,null,null,null,0,0,null,null,null,0,null,null,null,null,null,null,0]
[318,null,null,null,null,null,null,0,0,null,null,null,0,null,null,null,null,null,null,0]
[319,null,null,null,null,null,null,0,0,null,null,null,0,null,null,null,null,null,null,0]
[320,null,null,null,null,null,null,0,0,null,null,null,0,null,null,null,null,null,null,0]
[321,null,null,null,null,null,null,{"$f":"G325*$T$2","v":0},{"$f":"T325*$T$1","v":0},null,null,null,0,null,null,null,null,null,null,0]
[322,null,null,null,null,null,null,0,0,null,null,null,{"$f":"H326+I326-J326-K326-L326","v":0},null,null,null,null,null,null,{"$f":"F326*G326","v":0}]
[323,null,null,null,null,null,null,0,0,null,null,null,0,null,null,null,null,null,null,0]
[324,null,null,null,null,null,null,0,0,null,null,null,0,null,null,null,null,null,null,0]
[325,null,null,null,null,null,null,0,0,null,null,null,0,null,null,null,null,null,null,0]
[326,null,null,null,null,null,null,0,0,null,null,null,0,null,null,null,null,null,null,0]
[327,null,null,null,null,null,null,0,0,null,null,null,0,null,null,null,null,null,null,0]
[328,null,null,null,null,null,null,0,0,null,null,null,0,null,null,null,null,null,null,0]
[329,null,null,null,null,null,null,0,0,null,null,null,0,null,null,null,null,null,null,0]
[330,null,null,null,null,null,null,0,0,null,null,null,0,null,null,null,null,null,null,0]
[331,null,null,null,null,null,null,0,0,null,null,null,0,null,null,null,null,null,null,0]
[332,null,null,null,null,null,null,0,0,null,null,null,0,null,null,null,null,null,null,0]
[333,null,null,null,null,null,null,0,0,null,null,null,0,null,null,null,null,null,null,0]
[334,null,null,null,null,null,null,0,0,null,null,null,0,null,null,null,null,null,null,0]
[335,null,null,null,null,null,null,0,0,null,null,null,0,null,null,null,null,null,null,0]
[336,null,null,null,null,null,null,0,0,null,null,null,0,null,null,null,null,null,null,0]
[337,null,null,null,null,null,null,0,0,null,null,null,0,null,null,null,null,null,null,0]
[338,null,null,null,null,null,null,0,0,null,null,null,0,null,null,null,null,null,null,0]
[339,null,null,null,null,null,null,0,0,null,null,null,0,null,null,null,null,null,null,0]
[340,null,null,null,null,null,null,0,0,null,null,null,0,null,null,null,null,null,null,0]
[341,null,null,null,null,null,null,0,0,null,null,null,0,null,null,null,null,null,null,0]
[342,null,null,null,null,null,null,0,0,null,null,null,0,null,null,null,null,null,null,0]
[343,null,null,null,null,null,null,0,0,null,null,null,0,null,null,null,null,null,null,0]
[344,null,null,null,null,null,null,0,0,null,null,null,0,null,null,null,null,null,null,0]
[345,null,null,null,null,null,null,0,0,null,null,null,0,null,null,null,null,null,null,0]
[346,null,null,null,null,null,null,0,0,null,null,null,0,null,null,null,null,null,null,0]
[347,null,null,null,null,null,null,0,0,null,null,null,0,null,null,null,null,null,null,0]
[348,null,null,null,null,null,null,0,0,null,null,null,0,null,null,null,null,null,null,0]
[349,null,null,null,null,null,null,0,0,null,null,null,0,null,null,null,null,null,null,0]
[350,null,null,null,null,null,null,0,0,null,null,null,0,null,null,null,null,null,null,0]
[351,null,null,null,null,null,null,0,0,null,null,null,0,null,null,null,null,null,null,0]
[352,null,null,null,null,null,null,0,0,null,null,null,0,null,null,null,null,null,null,0]
[353,null,null,null,null,null,null,0,0,null,null,null,0,null,null,null,null,null,null,0]
[354,null,null,null,null,null,null,0,0,null,null,null,0,null,null,null,null,null,null,0]
[355,null,null,null,null,null,null,0,0,null,null,null,0,null,null,null,null,null,null,0]
[356,null,null,null,null,null,null,0,0,null,null,null,0,null,null,null,null,null,null,0]
[357,null,null,null,null,null,null,0,0,null,null,null,0,null,null,null,null,null,null,0]
[358,null,null,null,null,null,null,0,0,null,null,null,0,null,null,null,null,null,null,0]
[359,null,null,null,null,null,null,0,0,null,null,null,0,null,null,null,null,null,null,0]
[360,null,null,null,null,null,null,0,0,null,null,null,0,null,null,null,null,null,null,0]
[361,null,null,null,null,null,null,0,0,null,null,null,0,null,null,null,null,null,null,0]
[362,null,null,null,null,null,null,0,0,null,null,null,0,null,null,null,null,null,null,0]
[363,null,null,null,null,null,null,0,0,null,null,null,0,null,null,null,null,null,null,0]
[364,null,null,null,null,null,null,0,0,null,null,null,0,null,null,null,null,null,null,0]
[365,null,null,null,null,null,null,0,0,null,null,null,0,null,null,null,null,null,null,0]
[366,null,null,null,null,null,null,0,0,null,null,null,0,null,null,null,null,null,null,0]
[367,null,null,null,null,null,null,0,0,null,null,null,0,null,null,null,null,null,null,0]
[368,null,null,null,null,null,null,0,0,null,null,null,0,null,null,null,null,null,null,0]
[369,null,null,null,null,null,null,0,0,null,null,null,0,null,null,null,null,null,null,0]
[370,null,null,null,null,null,null,0,0,null,null,null,0,null,null,null,null,null,null,0]
[371,null,null,null,null,null,null,0,0,null,null,null,0,null,null,null,null,null,null,0]
[372,null,null,null,null,null,null,0,0,null,null,null,0,null,null,null,null,null,null,0]
[373,null,null,null,null,null,null,0,0,null,null,null,0,null,null,null,null,null,null,0]
[374,null,null,null,null,null,null,0,0,null,null,null,0,null,null,null,null,null,null,0]
[375,null,null,null,null,null,null,0,0,null,null,null,0,null,null,null,null,null,null,0]
[376,null,null,null,null,null,null,0,0,null,null,null,0,null,null,null,null,null,null,0]
[377,null,null,null,null,null,null,0,0,null,null,null,0,null,null,null,null,null,null,0]
[378,null,null,null,null,null,null,0,0,null,null,null,0,null,null,null,null,null,null,0]
[379,null,null,null,null,null,null,0,0,null,null,null,0,null,null,null,null,null,null,0]
[380,null,null,null,null,null,null,0,0,null,null,null,0,null,null,null,null,null,null,0]
[381,null,null,null,null,null,null,0,0,null,null,null,0,null,null,null,null,null,null,0]
[382,null,null,null,null,null,null,0,0,null,null,null,0,null,null,null,null,null,null,0]
[383,null,null,null,null,null,null,0,0,null,null,null,0,null,null,null,null,null,null,0]
[384,null,null,null,null,null,null,0,0,null,null,null,0,null,null,null,null,null,null,0]
[385,null,null,null,null,null,null,{"$f":"G389*$T$2","v":0},{"$f":"T389*$T$1","v":0},null,null,null,0,null,null,null,null,null,null,0]
[386,null,null,null,null,null,null,0,0,null,null,null,{"$f":"H390+I390-J390-K390-L390","v":0},null,null,null,null,null,null,{"$f":"F390*G390","v":0}]
[387,null,null,null,null,null,null,0,0,null,null,null,0,null,null,null,null,null,null,0]
[388,null,null,null,null,null,null,0,0,null,null,null,0,null,null,null,null,null,null,0]
[389,null,null,null,null,null,null,0,0,null,null,null,0,null,null,null,null,null,null,0]
[390,null,null,null,null,null,null,0,0,null,null,null,0,null,null,null,null,null,null,0]
[391,null,null,null,null,null,null,0,0,null,null,null,0,null,null,null,null,null,null,0]
[392,null,null,null,null,null,null,0,0,null,null,null,0,null,null,null,null,null,null,0]
[393,null,null,null,null,null,null,0,0,null,null,null,0,null,null,null,null,null,null,0]
[394,null,null,null,null,null,null,0,0,null,null,null,0,null,null,null,null,null,null,0]
[395,null,null,null,null,null,null,0,0,null,null,null,0,null,null,null,null,null,null,0]
[396,null,null,null,null,null,null,0,0,null,null,null,0,null,null,null,null,null,null,0]
[397,null,null,null,null,null,null,0,0,null,null,null,0,null,null,null,null,null,null,0]
[398,null,null,null,null,null,null,0,0,null,null,null,0,null,null,null,null,null,null,0]
[399,null,null,null,null,null,null,0,0,null,null,null,0,null,null,null,null,null,null,0]
[400,null,null,null,null,null,null,0,0,null,null,null,0,null,null,null,null,null,null,0]
[401,null,null,null,null,null,null,0,0,null,null,null,0,null,null,null,null,null,null,0]
[402,null,null,null,null,null,null,0,0,null,null,null,0,null,null,null,null,null,null,0]
[403,null,null,null,null,null,null,0,0,null,null,null,0,null,null,null,null,null,null,0]
[404,null,null,null,null,null,null,0,0,null,null,null,0,null,null,null,null,null,null,0]
[405,null,null,null,null,null,null,0,0,null,null,null,0,null,null,null,null,null,null,0]
[406,null,null,null,null,null,null,0,0,null,null,null,0,null,null,null,null,null,null,0]
[407,null,null,null,null,null,null,0,0,null,null,null,0,null,null,null,null,null,null,0]
[408,null,null,null,null,null,null,0,0,null,null,null,0,null,null,null,null,null,null,0]
[409,null,null,null,null,null,null,0,0,null,null,null,0,null,null,null,null,null,null,0]
[410,null,null,null,null,null,null,0,0,null,null,null,0,null,null,null,null,null,null,0]
[411,null,null,null,null,null,null,0,0,null,null,null,0,null,null,null,null,null,null,0]
[412,null,null,null,null,null,null,0,0,null,null,null,0,null,null,null,null,null,null,0]
[413,null,null,null,null,null,null,0,0,null,null,null,0,null,null,null,null,null,null,0]
[414,null,null,null,null,null,null,0,0,null,null,null,0,null,null,null,null,null,null,0]
[415,null,null,null,null,null,null,0,0,null,null,null,0,null,null,null,null,null,null,0]
[416,null,null,null,null,null,null,0,0,null,null,null,0,null,null,null,null,null,null,0]
[417,null,null,null,null,null,null,0,0,null,null,null,0,null,null,null,null,null,null,0]
[418,null,null,null,null,null,null,0,0,null,null,null,0,null,null,null,null,null,null,0]
[419,null,null,null,null,null,null,0,0,null,null,null,0,null,null,null,null,null,null,0]
[420,null,null,null,null,null,null,0,0,null,null,null,0,null,null,null,null,null,null,0]
[421,null,null,null,null,null,null,0,0,null,null,null,0,null,null,null,null,null,null,0]
[422,null,null,null,null,null,null,0,0,null,null,null,0,null,null,null,null,null,null,0]
[423,null,null,null,null,null,null,0,0,null,null,null,0,null,null,null,null,null,null,0]
[424,null,null,null,null,null,null,0,0,null,null,null,0,null,null,null,null,null,null,0]
[425,null,null,null,null,null,null,0,0,null,null,null,0,null,null,null,null,null,null,0]
[426,null,null,null,null,null,null,0,0,null,null,null,0,null,null,null,null,null,null,0]
[427,null,null,null,null,null,null,0,0,null,null,null,0,null,null,null,null,null,null,0]
[428,null,null,null,null,null,null,0,0,null,null,null,0,null,null,null,null,null,null,0]
[429,null,null,null,null,null,null,0,0,null,null,null,0,null,null,null,null,null,null,0]
[430,null,null,null,null,null,null,0,0,null,null,null,0,null,null,null,null,null,null,0]
[431,null,null,null,null,null,null,0,0,null,null,null,0,null,null,null,null,null,null,0]
[432,null,null,null,null,null,null,0,0,null,null,null,0,null,null,null,null,null,null,0]
[433,null,null,null,null,null,null,0,0,null,null,null,0,null,null,null,null,null,null,0]
[434,null,null,null,null,null,null,0,0,null,null,null,0,null,null,null,null,null,null,0]
[435,null,null,null,null,null,null,0,0,null,null,null,0,null,null,null,null,null,null,0]
[436,null,null,null,null,null,null,0,0,null,null,null,0,null,null,null,null,null,null,0]
[437,null,null,null,null,null,null,0,0,null,null,null,0,null,null,null,null,null,null,0]
[438,null,null,null,null,null,null,0,0,null,null,null,0,null,null,null,null,null,null,0]
[439,null,null,null,null,null,null,0,0,null,null,null,0,null,null,null,null,null,null,0]
[440,null,null,null,null,null,null,0,0,null,null,null,0,null,null,null,null,null,null,0]
[441,null,null,null,null,null,null,0,0,null,null,null,0,null,null,null,null,null,null,0]
[442,null,null,null,null,null,null,0,0,null,null,null,0,null,null,null,null,null,null,0]
[443,null,null,null,null,null,null,0,0,null,null,null,0,null,null,null,null,null,null,0]
[444,null,null,null,null,null,null,0,0,null,null,null,0,null,null,null,null,null,null,0]
[445,null,null,null,null,null,null,0,0,null,null,null,0,null,null,null,null,null,null,0]
[446,null,null,null,null,null,null,0,0,null,null,null,0,null,null,null,null,null,null,0]
[447,null,null,null,null,null,null,0,0,null,null,null,0,null,null,null,null,null,null,0]
[448,null,null,null,null,null,null,0,0,null,null,null,0,null,null,null,null,null,null,0]
[449,null,null,null,null,null,null,{"$f":"G453*$T$2","v":0},{"$f":"T453*$T$1","v":0},null,null,null,0,null,null,null,null,null,null,0]
[450,null,null,null,null,null,null,0,0,null,null,null,{"$f":"H454+I454-J454-K454-L454","v":0},null,null,null,null,null,null,{"$f":"F454*G454","v":0}]
[451,null,null,null,null,null,null,0,0,null,null,null,0,null,null,null,null,null,null,0]
[452,null,null,null,null,null,null,0,0,null,null,null,0,null,null,null,null,null,null,0]
[453,null,null,null,null,null,null,0,0,null,null,null,0,null,null,null,null,null,null,0]
[454,null,null,null,null,null,null,0,0,null,null,null,0,null,null,null,null,null,null,0]
[455,null,null,null,null,null,null,0,0,null,null,null,0,null,null,null,null,null,null,0]
[456,null,null,null,null,null,null,0,0,null,null,null,0,null,null,null,null,null,null,0]
[457,null,null,null,null,null,null,0,0,null,null,null,0,null,null,null,null,null,null,0]
[458,null,null,null,null,null,null,0,0,null,null,null,0,null,null,null,null,null,null,0]
[459,null,null,null,null,null,null,0,0,null,null,null,0,null,null,null,null,null,null,0]
[460,null,null,null,null,null,null,0,0,null,null,null,0,null,null,null,null,null,null,0]
[461,null,null,null,null,null,null,0,0,null,null,null,0,null,null,null,null,null,null,0]
[462,null,null,null,null,null,null,0,0,null,null,null,0,null,null,null,null,null,null,0]
[463,null,null,null,null,null,null,0,0,null,null,null,0,null,null,null,null,null,null,0]
[464,null,null,null,null,null,null,0,0,null,null,null,0,null,null,null,null,null,null,0]
[465,null,null,null,null,null,null,0,0,null,null,null,0,null,null,null,null,null,null,0]
[466,null,null,null,null,null,null,0,0,null,null,null,0,null,null,null,null,null,null,0]
[467,null,null,null,null,null,null,0,0,null,null,null,0,null,null,null,null,null,null,0]
[468,null,null,null,null,null,null,0,0,null,null,null,0,null,null,null,null,null,null,0]
[469,null,null,null,null,null,null,0,0,null,null,null,0,null,null,null,null,null,null,0]
[470,null,null,null,null,null,null,0,0,null,null,null,0,null,null,null,null,null,null,0]
[471,null,null,null,null,null,null,0,0,null,null,null,0,null,null,null,null,null,null,0]
[472,null,null,null,null,null,null,0,0,null,null,null,0,null,null,null,null,null,null,0]
[473,null,null,null,null,null,null,0,0,null,null,null,0,null,null,null,null,null,null,0]
[474,null,null,null,null,null,null,0,0,null,null,null,0,null,null,null,null,null,null,0]
[475,null,null,null,null,null,null,0,0,null,null,null,0,null,null,null,null,null,null,0]
[476,null,null,null,null,null,null,0,0,null,null,null,0,null,null,null,null,null,null,0]
[477,null,null,null,null,null,null,0,0,null,null,null,0,null,null,null,null,null,null,0]
[478,null,null,null,null,null,null,0,0,null,null,null,0,null,null,null,null,null,null,0]
[479,null,null,null,null,null,null,0,0,null,null,null,0,null,null,null,null,null,null,0]
[480,null,null,null,null,null,null,0,0,null,null,null,0,null,null,null,null,null,null,0]
[481,null,null,null,null,null,null,0,0,null,null,null,0,null,null,null,null,null,null,0]
[482,null,null,null,null,null,null,0,0,null,null,null,0,null,null,null,null,null,null,0]
[483,null,null,null,null,null,null,0,0,null,null,null,0,null,null,null,null,null,null,0]
[484,null,null,null,null,null,null,0,0,null,null,null,0,null,null,null,null,null,null,0]
[485,null,null,null,null,null,null,0,0,null,null,null,0,null,null,null,null,null,null,0]
[486,null,null,null,null,null,null,0,0,null,null,null,0,null,null,null,null,null,null,0]
[487,null,null,null,null,null,null,0,0,null,null,null,0,null,null,null,null,null,null,0]
[488,null,null,null,null,null,null,0,0,null,null,null,0,null,null,null,null,null,null,0]
[489,null,null,null,null,null,null,0,0,null,null,null,0,null,null,null,null,null,null,0]
[490,null,null,null,null,null,null,0,0,null,null,null,0,null,null,null,null,null,null,0]
[491,null,null,null,null,null,null,0,0,null,null,null,0,null,null,null,null,null,null,0]
[492,null,null,null,null,null,null,0,0,null,null,null,0,null,null,null,null,null,null,0]
[493,null,null,null,null,null,null,0,0,null,null,null,0,null,null,null,null,null,null,0]
[494,null,null,null,null,null,null,0,0,null,null,null,0,null,null,null,null,null,null,0]
[495,null,null,null,null,null,null,0,0,null,null,null,0,null,null,null,null,null,null,0]
[496,null,null,null,null,null,null,0,0,null,null,null,0,null,null,null,null,null,null,0]
[497,null,null,null,null,null,null,0,0,null,null,null,0,null,null,null,null,null,null,0]
[498,null,null,null,null,null,null,0,0,null,null,null,0,null,null,null,null,null,null,0]
[499,null,null,null,null,null,null,0,0,null,null,null,0,null,null,null,null,null,null,0]
[500,null,null,null,null,null,null,0,0,null,null,null,0,null,null,null,null,null,null,0]

{"sheet":"web","index":10,"n_rows":4,"n_cols":14,"rows_kept":4,"cut":false,"hidden":false,"merged":[]}
["CÉDULA",null,"APELLIDOS","NOMBRES","OCUPACIÓN","GÉNERO","DIAS_TRABAJADOS","CARGAS","DEC 4","ANTICIPOS_UTILIDADES","RET_JUDICIALES","RET_IMP_A_LA_RENTA","SOBRESUELDO","PARTIC_UTILIDADES"]
["ITIG821EIE",null,"JTTSRR SSNTTTNZZTT","CSSMPSSNSS GJJSSNTT","1910000000038","M",220,2,209.61]
["ITIE9E14EG",null,"NRRCKRRR WZZLFRZZDTT","ZJJMBSS CSSSTRTT","1910000000038","M",218,1,219.22]
["ITIG45G5GE",null,"APELLIDOS","NOMBRES","1910000000038","M",200,5,228.83]

{"sheet":"ad1","index":11,"n_rows":1,"n_cols":11,"rows_kept":1,"cut":false,"hidden":false,"merged":[]}
["CÉDULA",null,"APELLIDOS","NOMBRES","OCUPACIÓN","GÉNERO","DÍAS_TRABAJADOS","TOTAL_GANADO","RETENCIÓN","VALOR_DÉCIMO","FIRMA_O_HUELLA_DIG"]

{"sheet":"ad2","index":12,"n_rows":1,"n_cols":9,"rows_kept":1,"cut":false,"hidden":false,"merged":[]}
["CÉDULA",null,"APELLIDO","NOMBRE","COD SEC","DATO 4","DATO 5","DATO 6","DATO 7"]

{"sheet":"Hoja1","index":13,"n_rows":7,"n_cols":4,"rows_kept":7,"cut":false,"hidden":false,"merged":[]}
["ID",null,"DIAS","SUELDO ANUAL"]
["ITIG821EIE",null,360,5434.1299999999992]
["ITI429E51E",null,360,5479.1600000000017]
["IT5IG9G924",null,59,894.74]
["ITIE9E14EG",null,360,5375]
["I95T2449TE",null,225,3412.1299999999997]
["ITIG45G5GE",null,53,778.48]

{"sheet":"Hoja2","index":14,"n_rows":1,"n_cols":3,"rows_kept":1,"cut":false,"hidden":false,"merged":[]}
["ID",null,"DIAS"]